[Event "*** Biggest EVER Titled Tuesday"]
[Site "Chess.com"]
[Date "2018.04.17"]
[Round "6"]
[White "Cecile-Haussernot"]
[Black "Denis0027"]
[Result "1-0"]
[WhiteElo "2329"]
[BlackElo "2343"]
[TimeControl "180+2"]
[EndTime "14:23:21 PDT"]
[Termination "Cecile-Haussernot won by resignation"]

1. e4 {[%clk 0:03:01.9]} 1... d6 {[%clk 0:02:58.1]} 2. d4 {[%clk 0:03:01.9]}
2... Nf6 {[%clk 0:02:59.3]} 3. Nc3 {[%clk 0:03:02]} 3... g6 {[%clk 0:03:00.6]}
4. Bg5 {[%clk 0:03:01.6]} 4... Bg7 {[%clk 0:02:59.4]} 5. Qd2 {[%clk 0:03:02]}
5... c6 {[%clk 0:02:54.1]} 6. Nf3 {[%clk 0:03:01.9]} 6... b5 {[%clk 0:02:53.8]}
7. Bd3 {[%clk 0:03:02.8]} 7... Nbd7 {[%clk 0:02:50.5]} 8. O-O-O {[%clk
0:03:02.6]} 8... Nb6 {[%clk 0:02:46.5]} 9. Rhe1 {[%clk 0:02:54.9]} 9... O-O
{[%clk 0:02:44]} 10. Kb1 {[%clk 0:02:49.7]} 10... Nc4 {[%clk 0:02:43.8]} 11.
Bxc4 {[%clk 0:02:44.6]} 11... bxc4 {[%clk 0:02:45.7]} 12. Qe2 {[%clk 0:02:45.9]}
12... h6 {[%clk 0:02:08.9]} 13. Bc1 {[%clk 0:02:42.3]} 13... Qa5 {[%clk
0:01:55.8]} 14. Qxc4 {[%clk 0:02:40.2]} 14... Rb8 {[%clk 0:01:54.8]} 15. Ka1
{[%clk 0:02:37.5]} 15... Rb4 {[%clk 0:01:46.9]} 16. Qd3 {[%clk 0:02:35.7]} 16...
Ba6 {[%clk 0:01:47]} 17. Qd2 {[%clk 0:02:35.9]} 17... Rfb8 {[%clk 0:01:44.2]}
18. e5 {[%clk 0:02:31.8]} 18... Nd5 {[%clk 0:01:34.7]} 19. Nxd5 {[%clk
0:02:28.3]} 19... cxd5 {[%clk 0:01:36.6]} 20. a3 {[%clk 0:02:22.3]} 20... Bc4
{[%clk 0:01:31.6]} 21. Re3 {[%clk 0:02:15.4]} 21... h5 {[%clk 0:01:08.7]} 22.
Rc3 {[%clk 0:01:36.1]} 22... R4b5 {[%clk 0:00:57.7]} 23. b3 {[%clk 0:01:20.9]}
23... Qb6 {[%clk 0:00:50.5]} 24. Bb2 {[%clk 0:01:18.5]} 24... a5 {[%clk
0:00:49.3]} 25. a4 {[%clk 0:01:14.4]} 25... Rb4 {[%clk 0:00:47.4]} 26. Ba3
{[%clk 0:01:07.5]} 26... dxe5 {[%clk 0:00:21.3]} 27. dxe5 {[%clk 0:01:03.1]}
27... e6 {[%clk 0:00:21.9]} 28. Bxb4 {[%clk 0:00:37.9]} 28... Qxb4 {[%clk
0:00:23.8]} 29. Kb2 {[%clk 0:00:28.7]} 29... Qb6 {[%clk 0:00:25.7]} 30. Qd4
{[%clk 0:00:26]} 30... Qb4 {[%clk 0:00:27.6]} 31. Nd2 {[%clk 0:00:24.1]} 31...
Bf8 {[%clk 0:00:19.9]} 32. Nxc4 {[%clk 0:00:24.5]} 32... dxc4 {[%clk 0:00:20.6]}
33. Qxc4 {[%clk 0:00:24.9]} 33... Qa3+ {[%clk 0:00:20.4]} 34. Kb1 {[%clk
0:00:26.3]} 34... Bg7 {[%clk 0:00:17.9]} 35. f4 {[%clk 0:00:26.3]} 35... Kh7
{[%clk 0:00:14.3]} 36. Qc5 {[%clk 0:00:26.9]} 36... Qxa4 {[%clk 0:00:13.4]} 37.
Rd4 {[%clk 0:00:27.6]} 37... Qe8 {[%clk 0:00:14]} 38. Qc6 {[%clk 0:00:27.9]}
38... Qf8 {[%clk 0:00:15.2]} 39. Qd6 {[%clk 0:00:29]} 39... Qg8 {[%clk
0:00:16.2]} 40. Rc7 {[%clk 0:00:29.3]} 40... Ra8 {[%clk 0:00:14.9]} 41. Qd7
{[%clk 0:00:30.1]} 41... a4 {[%clk 0:00:12.8]} 42. Rxa4 {[%clk 0:00:30.1]} 42...
Rxa4 {[%clk 0:00:13.2]} 43. Qxa4 {[%clk 0:00:32]} 43... Qb8 {[%clk 0:00:13]} 44.
Qd7 {[%clk 0:00:32.7]} 44... Qb4 {[%clk 0:00:13]} 45. Qxf7 {[%clk 0:00:32.8]}
1-0

[Event "*** Biggest EVER Titled Tuesday"]
[Site "Chess.com"]
[Date "2018.04.17"]
[Round "6"]
[White "Ravan_02"]
[Black "bancsoo"]
[Result "0-1"]
[WhiteElo "2433"]
[BlackElo "2593"]
[TimeControl "180+2"]
[EndTime "14:23:23 PDT"]
[Termination "bancsoo won by resignation"]

1. g3 {[%clk 0:03:01.8]} 1... d5 {[%clk 0:02:59]} 2. Bg2 {[%clk 0:03:03.7]} 2...
g6 {[%clk 0:03:00.6]} 3. d3 {[%clk 0:03:05.2]} 3... Bg7 {[%clk 0:03:01.6]} 4.
Nf3 {[%clk 0:03:06.7]} 4... e5 {[%clk 0:03:00.6]} 5. O-O {[%clk 0:03:08]} 5...
Ne7 {[%clk 0:03:02.1]} 6. Nbd2 {[%clk 0:03:08.9]} 6... O-O {[%clk 0:03:01.7]} 7.
e4 {[%clk 0:03:10.1]} 7... Nbc6 {[%clk 0:03:02.2]} 8. c3 {[%clk 0:03:09.5]} 8...
a5 {[%clk 0:03:03]} 9. Re1 {[%clk 0:02:59.3]} 9... h6 {[%clk 0:02:58.9]} 10.
exd5 {[%clk 0:02:59.1]} 10... Nxd5 {[%clk 0:02:57.6]} 11. Nc4 {[%clk 0:03:00.3]}
11... Re8 {[%clk 0:02:52.9]} 12. a4 {[%clk 0:02:55.7]} 12... Bf5 {[%clk
0:02:49.4]} 13. Nh4 {[%clk 0:02:55.9]} 13... Be6 {[%clk 0:02:49.7]} 14. Ne3
{[%clk 0:02:53.8]} 14... Nxe3 {[%clk 0:02:42.6]} 15. Bxe3 {[%clk 0:02:55.6]}
15... Qd7 {[%clk 0:02:41.4]} 16. Qc2 {[%clk 0:02:38.8]} 16... Rad8 {[%clk
0:02:37.1]} 17. Rad1 {[%clk 0:02:34.5]} 17... Bd5 {[%clk 0:02:32.6]} 18. Nf3
{[%clk 0:02:34.7]} 18... f5 {[%clk 0:02:20.2]} 19. Bc5 {[%clk 0:02:31.8]} 19...
Kh7 {[%clk 0:02:16.3]} 20. b4 {[%clk 0:02:32.7]} 20... b6 {[%clk 0:02:02.4]} 21.
c4 {[%clk 0:01:55.4]} 21... Bxf3 {[%clk 0:02:00.1]} 22. Bxf3 {[%clk 0:01:53.9]}
22... bxc5 {[%clk 0:02:00.7]} 23. Bxc6 {[%clk 0:01:49.2]} 23... Qxc6 {[%clk
0:02:01.1]} 24. bxa5 {[%clk 0:01:50.2]} 24... Ra8 {[%clk 0:01:58]} 25. Qd2
{[%clk 0:01:42]} 25... Qxa4 {[%clk 0:01:54.5]} 26. Ra1 {[%clk 0:01:42.5]} 26...
Qc6 {[%clk 0:01:54.9]} 27. Ra2 {[%clk 0:01:38.7]} 27... e4 {[%clk 0:01:55.6]}
28. dxe4 {[%clk 0:01:39.5]} 28... Rxe4 {[%clk 0:01:56.1]} 29. Rd1 {[%clk
0:01:40.8]} 29... Rd4 {[%clk 0:01:54.4]} 30. Qe2 {[%clk 0:01:40.3]} 30... Re8
{[%clk 0:01:53.1]} 31. Qf1 {[%clk 0:01:38.6]} 31... Rxd1 {[%clk 0:01:50.3]} 32.
Qxd1 {[%clk 0:01:40.5]} 32... Bc3 {[%clk 0:01:50.8]} 33. Re2 {[%clk 0:01:33.1]}
33... Rxe2 {[%clk 0:01:42.4]} 34. Qxe2 {[%clk 0:01:34.9]} 34... Bxa5 {[%clk
0:01:42.3]} 35. Qe7+ {[%clk 0:01:35.3]} 35... Kg8 {[%clk 0:01:43.6]} 36. Qd8+
{[%clk 0:01:32.3]} 36... Kf7 {[%clk 0:01:43.8]} 37. Qh8 {[%clk 0:01:33.8]} 37...
h5 {[%clk 0:01:40.2]} 38. Qh7+ {[%clk 0:01:34.2]} 38... Ke8 {[%clk 0:01:38.2]}
39. Qg8+ {[%clk 0:01:34.9]} 39... Kd7 {[%clk 0:01:38.9]} 40. h4 {[%clk
0:01:30.8]} 40... Bc3 {[%clk 0:01:37.4]} 41. Qf7+ {[%clk 0:01:26.7]} 41... Kc8
{[%clk 0:01:38.2]} 42. Qf8+ {[%clk 0:01:22]} 42... Kb7 {[%clk 0:01:39.2]} 43.
Qe7 {[%clk 0:01:23.1]} 43... Bd4 {[%clk 0:01:38.3]} 44. Qe2 {[%clk 0:01:23.1]}
44... Qe4 {[%clk 0:01:39]} 45. Qa2 {[%clk 0:01:23.6]} 45... Qd3 {[%clk
0:01:34.4]} 46. Kg2 {[%clk 0:01:20.1]} 46... f4 {[%clk 0:01:35.3]} 47. gxf4
{[%clk 0:01:13.3]} 47... Qd1 {[%clk 0:01:34.6]} 48. Qa5 {[%clk 0:01:08.4]} 48...
Qg4+ {[%clk 0:01:28.2]} 49. Kf1 {[%clk 0:01:08.8]} 49... c6 {[%clk 0:01:28.7]}
50. Qd8 {[%clk 0:01:05.8]} 50... Qxf4 {[%clk 0:01:27.1]} 51. Qd7+ {[%clk
0:00:57.6]} 51... Qc7 {[%clk 0:01:27.7]} 52. Qe6 {[%clk 0:00:58.4]} 52... Qg7
{[%clk 0:01:24.1]} 53. Kg2 {[%clk 0:00:55]} 53... Qf6 {[%clk 0:01:24.8]} 54.
Qd7+ {[%clk 0:00:53.8]} 54... Kb6 {[%clk 0:01:26.3]} 55. f3 {[%clk 0:00:53.6]}
55... Qxh4 {[%clk 0:01:20.5]} 56. Qc8 {[%clk 0:00:43.5]} 56... Qf2+ {[%clk
0:01:21.1]} 57. Kh1 {[%clk 0:00:44.5]} 57... Qxf3+ {[%clk 0:01:21]} 58. Kh2
{[%clk 0:00:45.8]} 58... Be5+ {[%clk 0:01:18.7]} 59. Kg1 {[%clk 0:00:47]} 59...
Qg4+ {[%clk 0:01:20.2]} 60. Qxg4 {[%clk 0:00:47]} 60... hxg4 {[%clk 0:01:21.4]}
61. Kf2 {[%clk 0:00:48.7]} 61... Ka5 {[%clk 0:01:22.8]} 62. Ke3 {[%clk
0:00:50.4]} 62... Kb4 {[%clk 0:01:23.8]} 63. Ke4 {[%clk 0:00:52]} 63... g3
{[%clk 0:01:25]} 64. Kf3 {[%clk 0:00:53.2]} 64... Kxc4 {[%clk 0:01:25.8]} 65.
Kg2 {[%clk 0:00:55.1]} 65... Kd3 {[%clk 0:01:27]} 66. Kh3 {[%clk 0:00:57]} 66...
c4 {[%clk 0:01:28.5]} 67. Kg2 {[%clk 0:00:58.8]} 67... c3 {[%clk 0:01:30.1]} 68.
Kf3 {[%clk 0:01:00.7]} 68... c2 {[%clk 0:01:31.4]} 69. Kg4 {[%clk 0:01:02.5]}
69... c1=Q {[%clk 0:01:32.4]} 70. Kh3 {[%clk 0:01:04.4]} 70... Qh1+ {[%clk
0:01:31.8]} 71. Kg4 {[%clk 0:01:06.2]} 71... g2 {[%clk 0:01:31.2]} 0-1

[Event "*** Biggest EVER Titled Tuesday"]
[Site "Chess.com"]
[Date "2018.04.17"]
[Round "6"]
[White "omer1997"]
[Black "carlesdc96"]
[Result "1-0"]
[WhiteElo "2106"]
[BlackElo "2447"]
[TimeControl "180+2"]
[EndTime "14:23:25 PDT"]
[Termination "omer1997 won by checkmate"]

1. e4 {[%clk 0:03:01.9]} 1... e6 {[%clk 0:03:01.4]} 2. d4 {[%clk 0:03:01.3]}
2... d5 {[%clk 0:03:02.7]} 3. Nd2 {[%clk 0:03:02.1]} 3... c5 {[%clk 0:03:03.7]}
4. exd5 {[%clk 0:03:00.6]} 4... Qxd5 {[%clk 0:03:05.6]} 5. Ngf3 {[%clk
0:03:01.4]} 5... cxd4 {[%clk 0:03:06.5]} 6. Bc4 {[%clk 0:03:02.2]} 6... Qd7
{[%clk 0:03:07.3]} 7. O-O {[%clk 0:03:02.5]} 7... Nc6 {[%clk 0:03:07.9]} 8. Nb3
{[%clk 0:03:03.2]} 8... a6 {[%clk 0:03:08.4]} 9. Nbxd4 {[%clk 0:03:03.7]} 9...
Nxd4 {[%clk 0:03:09.5]} 10. Nxd4 {[%clk 0:03:03.5]} 10... Qc7 {[%clk 0:03:10.7]}
11. Qe2 {[%clk 0:03:03.5]} 11... Bd6 {[%clk 0:03:07.5]} 12. Nf5 {[%clk
0:02:50.3]} 12... Bxh2+ {[%clk 0:02:57.4]} 13. Kh1 {[%clk 0:02:50.7]} 13... Be5
{[%clk 0:02:58.4]} 14. Re1 {[%clk 0:02:48.2]} 14... Bf6 {[%clk 0:02:30]} 15. Rd1
{[%clk 0:02:45.7]} 15... Ne7 {[%clk 0:02:26.5]} 16. Nd6+ {[%clk 0:02:40.9]}
16... Kf8 {[%clk 0:02:27.6]} 17. Bf4 {[%clk 0:02:34.8]} 17... Qa5 {[%clk
0:02:14.5]} 18. b4 {[%clk 0:01:55.1]} 18... Qb6 {[%clk 0:02:02.9]} 19. Rab1
{[%clk 0:01:37.9]} 19... Ng6 {[%clk 0:01:49.2]} 20. Be3 {[%clk 0:01:33.9]} 20...
Qc7 {[%clk 0:01:47]} 21. Bc5 {[%clk 0:01:07.9]} 21... Be7 {[%clk 0:01:27.7]} 22.
Rb3 {[%clk 0:01:07.1]} 22... b5 {[%clk 0:01:05.2]} 23. Qf3 {[%clk 0:01:02.9]}
23... Ne5 {[%clk 0:00:45.7]} 24. Qxa8 {[%clk 0:01:01.8]} 24... bxc4 {[%clk
0:00:46.7]} 25. Nxc8 {[%clk 0:00:46.3]} 25... Bxc5 {[%clk 0:00:38]} 26. bxc5
{[%clk 0:00:22]} 26... cxb3 {[%clk 0:00:35]} 27. Nd6+ {[%clk 0:00:22.9]} 27...
Ke7 {[%clk 0:00:34.2]} 28. Qxh8 {[%clk 0:00:24.8]} 28... bxc2 {[%clk 0:00:30.6]}
29. Rc1 {[%clk 0:00:16.3]} 29... Qc6 {[%clk 0:00:25.7]} 30. Qxg7 {[%clk
0:00:15.6]} 30... Qxc5 {[%clk 0:00:24.2]} 31. Nc8+ {[%clk 0:00:13.2]} 31... Kd7
{[%clk 0:00:22.8]} 32. Nb6+ {[%clk 0:00:12.5]} 32... Kc6 {[%clk 0:00:21.2]} 33.
Na4 {[%clk 0:00:12.5]} 33... Qd4 {[%clk 0:00:14.7]} 34. Rxc2+ {[%clk 0:00:13.4]}
34... Kb5 {[%clk 0:00:15.7]} 35. Nc3+ {[%clk 0:00:14.4]} 35... Kb4 {[%clk
0:00:17.1]} 36. Qg3 {[%clk 0:00:14.1]} 36... Nd3 {[%clk 0:00:17.3]} 37. Kg1
{[%clk 0:00:08.4]} 37... Nf4 {[%clk 0:00:16.5]} 38. Qe3 {[%clk 0:00:07.5]} 38...
Qd6 {[%clk 0:00:10.1]} 39. Rb2+ {[%clk 0:00:06.7]} 39... Ka5 {[%clk 0:00:09.5]}
40. a3 {[%clk 0:00:05.3]} 40... Qxa3 {[%clk 0:00:09]} 41. Qb6# {[%clk
0:00:05.6]} 1-0

[Event "*** Biggest EVER Titled Tuesday"]
[Site "Chess.com"]
[Date "2018.04.17"]
[Round "6"]
[White "goldenspine"]
[Black "twitchTriniCupid"]
[Result "0-1"]
[WhiteElo "2265"]
[BlackElo "2174"]
[TimeControl "180+2"]
[EndTime "14:23:25 PDT"]
[Termination "twitchTriniCupid won by resignation"]

1. e4 {[%clk 0:03:01.9]} 1... c6 {[%clk 0:03:00.8]} 2. d4 {[%clk 0:03:02.4]}
2... d5 {[%clk 0:03:02.7]} 3. Nc3 {[%clk 0:03:03.6]} 3... dxe4 {[%clk
0:03:03.8]} 4. Nxe4 {[%clk 0:03:05.5]} 4... Bf5 {[%clk 0:03:04.3]} 5. Ng3 {[%clk
0:03:06.5]} 5... Bg6 {[%clk 0:03:05.6]} 6. h4 {[%clk 0:03:08.2]} 6... h6 {[%clk
0:03:06.6]} 7. h5 {[%clk 0:03:09.5]} 7... Bh7 {[%clk 0:03:07.6]} 8. Nf3 {[%clk
0:03:10.5]} 8... Nd7 {[%clk 0:03:08.4]} 9. Bd3 {[%clk 0:03:12.2]} 9... Bxd3
{[%clk 0:03:09.4]} 10. Qxd3 {[%clk 0:03:13.8]} 10... e6 {[%clk 0:03:10.7]} 11.
Bd2 {[%clk 0:03:14.8]} 11... Ngf6 {[%clk 0:03:06.2]} 12. Ne4 {[%clk 0:03:15.7]}
12... Nxe4 {[%clk 0:03:04.8]} 13. Qxe4 {[%clk 0:03:17.6]} 13... Be7 {[%clk
0:03:03.4]} 14. Qe2 {[%clk 0:03:15.4]} 14... Qc7 {[%clk 0:02:53.3]} 15. g4
{[%clk 0:03:15]} 15... O-O-O {[%clk 0:02:49.4]} 16. O-O-O {[%clk 0:03:15.6]}
16... Bd6 {[%clk 0:02:37.7]} 17. Kb1 {[%clk 0:03:07.8]} 17... c5 {[%clk
0:02:30.7]} 18. c3 {[%clk 0:03:04.4]} 18... cxd4 {[%clk 0:02:23.3]} 19. cxd4
{[%clk 0:03:00.2]} 19... Kb8 {[%clk 0:02:23.9]} 20. g5 {[%clk 0:02:46.7]} 20...
hxg5 {[%clk 0:02:05.4]} 21. Rc1 {[%clk 0:02:24.9]} 21... Qb6 {[%clk 0:02:05.8]}
22. Nxg5 {[%clk 0:02:19.8]} 22... Rhf8 {[%clk 0:02:01]} 23. Be3 {[%clk
0:01:46.8]} 23... Qa5 {[%clk 0:01:49.5]} 24. Rhg1 {[%clk 0:01:12.9]} 24... Nf6
{[%clk 0:01:41.9]} 25. Qf3 {[%clk 0:01:06.7]} 25... Qb5 {[%clk 0:01:32.8]} 26.
h6 {[%clk 0:00:59.6]} 26... Qd3+ {[%clk 0:00:31.3]} 27. Ka1 {[%clk 0:00:59.9]}
27... gxh6 {[%clk 0:00:32.1]} 28. Nh3 {[%clk 0:00:39.1]} 28... Nd5 {[%clk
0:00:27.7]} 29. Rgd1 {[%clk 0:00:39.5]} 29... Qg6 {[%clk 0:00:25.8]} 30. Nf4
{[%clk 0:00:25.3]} 30... Qf5 {[%clk 0:00:23.3]} 31. Rc5 {[%clk 0:00:12.2]} 31...
Bxc5 {[%clk 0:00:23.8]} 32. dxc5 {[%clk 0:00:13.3]} 32... Nxf4 {[%clk
0:00:24.4]} 33. Bxf4+ {[%clk 0:00:13]} 33... Ka8 {[%clk 0:00:25.5]} 34. Rc1
{[%clk 0:00:12.9]} 34... Qd5 {[%clk 0:00:22.8]} 35. Qa3 {[%clk 0:00:12.4]} 35...
e5 {[%clk 0:00:21.2]} 36. Be3 {[%clk 0:00:12.8]} 36... Qc6 {[%clk 0:00:20.2]}
37. Qa5 {[%clk 0:00:12.3]} 37... f5 {[%clk 0:00:18.4]} 38. f4 {[%clk 0:00:08.5]}
38... e4 {[%clk 0:00:17.8]} 39. a3 {[%clk 0:00:05.4]} 39... Rd3 {[%clk
0:00:18.6]} 40. Bg1 {[%clk 0:00:03.5]} 40... Rfd8 {[%clk 0:00:19]} 41. Ka2
{[%clk 0:00:04.6]} 41... Qd5+ {[%clk 0:00:19.5]} 42. Kb1 {[%clk 0:00:04]} 42...
Rd1 {[%clk 0:00:19.8]} 43. c6 {[%clk 0:00:05.1]} 43... Rxc1+ {[%clk 0:00:20.6]}
44. Kxc1 {[%clk 0:00:06.7]} 44... Qxa5 {[%clk 0:00:21.7]} 45. cxb7+ {[%clk
0:00:07.3]} 45... Kxb7 {[%clk 0:00:22.8]} 0-1

[Event "*** Biggest EVER Titled Tuesday"]
[Site "Chess.com"]
[Date "2018.04.17"]
[Round "6"]
[White "Fandorine"]
[Black "Blitzstream"]
[Result "1-0"]
[WhiteElo "2718"]
[BlackElo "2470"]
[TimeControl "180+2"]
[EndTime "14:23:30 PDT"]
[Termination "Fandorine won by checkmate"]

1. e4 {[%clk 0:03:01.9]} 1... d5 {[%clk 0:03:00.8]} 2. exd5 {[%clk 0:03:02.5]}
2... Qxd5 {[%clk 0:03:02.7]} 3. Nc3 {[%clk 0:03:03.1]} 3... Qa5 {[%clk
0:03:03.2]} 4. g3 {[%clk 0:02:56.9]} 4... Nf6 {[%clk 0:03:03.7]} 5. Bg2 {[%clk
0:02:57.8]} 5... c6 {[%clk 0:03:04.2]} 6. Nf3 {[%clk 0:02:58.2]} 6... Bg4 {[%clk
0:03:03]} 7. h3 {[%clk 0:02:59.2]} 7... Bh5 {[%clk 0:03:03.6]} 8. O-O {[%clk
0:02:59.8]} 8... e6 {[%clk 0:03:04.2]} 9. d3 {[%clk 0:03:00.5]} 9... Bd6 {[%clk
0:03:04]} 10. Ne2 {[%clk 0:03:01]} 10... Nbd7 {[%clk 0:02:56]} 11. Nf4 {[%clk
0:02:59.1]} 11... Bg6 {[%clk 0:02:56]} 12. Re1 {[%clk 0:02:54.2]} 12... O-O
{[%clk 0:02:46.8]} 13. Nxg6 {[%clk 0:02:45.7]} 13... hxg6 {[%clk 0:02:48.7]} 14.
c3 {[%clk 0:02:46.8]} 14... Rad8 {[%clk 0:02:43.5]} 15. d4 {[%clk 0:02:46]}
15... Rfe8 {[%clk 0:02:31.2]} 16. Qb3 {[%clk 0:02:42.8]} 16... Qb6 {[%clk
0:02:28.5]} 17. Nd2 {[%clk 0:02:40.8]} 17... Bb8 {[%clk 0:02:03.6]} 18. Nc4
{[%clk 0:02:39.5]} 18... Qa6 {[%clk 0:01:55.8]} 19. a4 {[%clk 0:02:38.2]} 19...
e5 {[%clk 0:01:42.6]} 20. Be3 {[%clk 0:02:29.3]} 20... exd4 {[%clk 0:01:33.6]}
21. Bxd4 {[%clk 0:02:28.6]} 21... Nd5 {[%clk 0:01:04.6]} 22. Bf1 {[%clk
0:01:51.9]} 22... b5 {[%clk 0:01:00.9]} 23. axb5 {[%clk 0:01:44.9]} 23... Qxb5
{[%clk 0:01:02]} 24. Qxb5 {[%clk 0:01:35.4]} 24... cxb5 {[%clk 0:01:02.9]} 25.
Na5 {[%clk 0:01:34.3]} 25... Rxe1 {[%clk 0:00:46.8]} 26. Rxe1 {[%clk 0:01:34.6]}
26... a6 {[%clk 0:00:42.3]} 27. Bg2 {[%clk 0:01:24.1]} 27... N7f6 {[%clk
0:00:33.1]} 28. Nc6 {[%clk 0:01:21.9]} 28... Rf8 {[%clk 0:00:22.1]} 29. Ra1
{[%clk 0:00:58.7]} 29... b4 {[%clk 0:00:21.8]} 30. c4 {[%clk 0:00:46.4]} 30...
Nc7 {[%clk 0:00:21.7]} 31. Nxb4 {[%clk 0:00:42.4]} 31... Ne6 {[%clk 0:00:22.5]}
32. Be3 {[%clk 0:00:40.8]} 32... Be5 {[%clk 0:00:22.7]} 33. Nd3 {[%clk
0:00:40.3]} 33... Bd4 {[%clk 0:00:20.2]} 34. Bxd4 {[%clk 0:00:41.5]} 34... Nxd4
{[%clk 0:00:21.2]} 35. Rxa6 {[%clk 0:00:43]} 35... Kh7 {[%clk 0:00:20.3]} 36.
Ra8 {[%clk 0:00:42.7]} 36... Rxa8 {[%clk 0:00:21.1]} 37. Bxa8 {[%clk 0:00:44.1]}
37... Nd7 {[%clk 0:00:21.5]} 38. c5 {[%clk 0:00:37.7]} 38... Nb8 {[%clk
0:00:18.9]} 39. b4 {[%clk 0:00:37.1]} 39... f5 {[%clk 0:00:18.7]} 40. f4 {[%clk
0:00:36.6]} 40... Kh6 {[%clk 0:00:19.2]} 41. h4 {[%clk 0:00:34.1]} 41... Kh5
{[%clk 0:00:19.3]} 42. Kf2 {[%clk 0:00:35.4]} 42... Kg4 {[%clk 0:00:18.8]} 43.
Kg2 {[%clk 0:00:34.2]} 43... Na6 {[%clk 0:00:14.8]} 44. b5 {[%clk 0:00:28.2]}
44... Nc7 {[%clk 0:00:15.4]} 45. b6 {[%clk 0:00:25.9]} 45... Nxa8 {[%clk
0:00:12.5]} 46. b7 {[%clk 0:00:27.1]} 46... Nc7 {[%clk 0:00:13.2]} 47. b8=Q
{[%clk 0:00:26.6]} 47... Nce6 {[%clk 0:00:15.1]} 48. Nf2+ {[%clk 0:00:25.9]}
48... Kh5 {[%clk 0:00:15.6]} 49. Qh8# {[%clk 0:00:27.4]} 1-0

[Event "*** Biggest EVER Titled Tuesday"]
[Site "Chess.com"]
[Date "2018.04.17"]
[Round "6"]
[White "ChessMavenYeti"]
[Black "MFBerna"]
[Result "1-0"]
[WhiteElo "2097"]
[BlackElo "2311"]
[TimeControl "180+2"]
[EndTime "14:23:32 PDT"]
[Termination "ChessMavenYeti won by checkmate"]

1. d4 {[%clk 0:03:01.9]} 1... d5 {[%clk 0:03:00.4]} 2. c4 {[%clk 0:02:29.7]}
2... c6 {[%clk 0:03:00.6]} 3. e3 {[%clk 0:02:30]} 3... Nf6 {[%clk 0:03:01.7]} 4.
Nf3 {[%clk 0:02:30.9]} 4... a6 {[%clk 0:03:02.8]} 5. Nc3 {[%clk 0:02:31.8]} 5...
g6 {[%clk 0:03:04]} 6. c5 {[%clk 0:02:31.8]} 6... Bg7 {[%clk 0:03:04.8]} 7. Qb3
{[%clk 0:02:31]} 7... O-O {[%clk 0:03:05.2]} 8. Bd2 {[%clk 0:02:32.1]} 8... Re8
{[%clk 0:03:00.7]} 9. Ne5 {[%clk 0:02:32.9]} 9... Nfd7 {[%clk 0:02:57.4]} 10. f4
{[%clk 0:02:32.3]} 10... f6 {[%clk 0:02:58.3]} 11. Nxd7 {[%clk 0:02:30.1]} 11...
Nxd7 {[%clk 0:03:00.2]} 12. Be2 {[%clk 0:02:30.5]} 12... e5 {[%clk 0:02:54.9]}
13. fxe5 {[%clk 0:02:28.5]} 13... fxe5 {[%clk 0:02:54.7]} 14. O-O-O {[%clk
0:02:23.7]} 14... exd4 {[%clk 0:02:47.9]} 15. exd4 {[%clk 0:02:24.7]} 15... Nxc5
{[%clk 0:02:11.3]} 16. dxc5 {[%clk 0:02:23]} 16... Bxc3 {[%clk 0:02:11.4]} 17.
Qxc3 {[%clk 0:02:17.8]} 17... Rxe2 {[%clk 0:02:11.6]} 18. Bh6 {[%clk 0:02:13.9]}
18... Qc7 {[%clk 0:00:33.4]} 19. Rde1 {[%clk 0:01:58]} 19... Rxe1+ {[%clk
0:00:33.8]} 20. Rxe1 {[%clk 0:01:55.9]} 20... Bf5 {[%clk 0:00:32.9]} 21. Qf6
{[%clk 0:01:51.9]} 21... Qf7 {[%clk 0:00:23.6]} 22. Qd4 {[%clk 0:01:20.2]} 22...
Be4 {[%clk 0:00:22.1]} 23. Re2 {[%clk 0:01:16.4]} 23... Qf1+ {[%clk 0:00:20.7]}
24. Kd2 {[%clk 0:01:16.9]} 24... Qf7 {[%clk 0:00:13.5]} 25. Rf2 {[%clk
0:01:16.8]} 25... Qe7 {[%clk 0:00:09.1]} 26. Rf6 {[%clk 0:01:13.7]} 26... Re8
{[%clk 0:00:06.9]} 27. Re6 {[%clk 0:01:12.1]} 27... Kf7 {[%clk 0:00:03.5]} 28.
Rxe7+ {[%clk 0:01:10]} 28... Rxe7 {[%clk 0:00:05.4]} 29. Qg7+ {[%clk 0:01:10.7]}
29... Ke6 {[%clk 0:00:06.5]} 30. Qf8 {[%clk 0:01:08.8]} 30... Rf7 {[%clk
0:00:06.4]} 31. Qd6+ {[%clk 0:01:08.2]} 31... Kf5 {[%clk 0:00:06.4]} 32. g3
{[%clk 0:00:56.7]} 32... Bg2 {[%clk 0:00:02.6]} 33. g4+ {[%clk 0:00:53.7]} 33...
Kxg4 {[%clk 0:00:03.5]} 34. Qe6+ {[%clk 0:00:54.9]} 34... Rf5 {[%clk 0:00:04.8]}
35. Bf8 {[%clk 0:00:51.1]} 35... Kh3 {[%clk 0:00:03.8]} 36. Bd6 {[%clk
0:00:50.2]} 36... Be4 {[%clk 0:00:04.6]} 37. Qd7 {[%clk 0:00:50]} 37... h5
{[%clk 0:00:05.2]} 38. Qxb7 {[%clk 0:00:50.3]} 38... Rf2+ {[%clk 0:00:04.7]} 39.
Kc3 {[%clk 0:00:49.5]} 39... Rf3+ {[%clk 0:00:05.4]} 40. Kd4 {[%clk 0:00:50.4]}
40... Rd3+ {[%clk 0:00:05.6]} 41. Ke5 {[%clk 0:00:51.7]} 41... Kxh2 {[%clk
0:00:06]} 42. Kf6+ {[%clk 0:00:50.3]} 42... Kh3 {[%clk 0:00:06.3]} 43. Qd7+
{[%clk 0:00:50.6]} 43... Bf5 {[%clk 0:00:06.5]} 44. Qxc6 {[%clk 0:00:51.8]}
44... Rf3 {[%clk 0:00:05]} 45. Kg5 {[%clk 0:00:47.8]} 45... Be4 {[%clk
0:00:04.2]} 46. Qd7+ {[%clk 0:00:48.3]} 46... Rf5+ {[%clk 0:00:04]} 47. Kxg6
{[%clk 0:00:48.8]} 47... Kg4 {[%clk 0:00:04.7]} 48. c6 {[%clk 0:00:48.2]} 48...
d4 {[%clk 0:00:02.6]} 49. c7 {[%clk 0:00:48.4]} 49... d3 {[%clk 0:00:04.1]} 50.
c8=Q {[%clk 0:00:49.2]} 50... d2 {[%clk 0:00:05.5]} 51. Qxf5+ {[%clk 0:00:50.1]}
51... Bxf5+ {[%clk 0:00:06.6]} 52. Qxf5+ {[%clk 0:00:52]} 52... Kh4 {[%clk
0:00:07.9]} 53. Qd3 {[%clk 0:00:52.8]} 53... a5 {[%clk 0:00:08.6]} 54. Qg3#
{[%clk 0:00:53.5]} 1-0